bitfinex-derivatives/quotes_ETHF0:USTF0_20260118
["timestamp","ask_amount","ask_price","bid_price","bid_amount"]
[1768758971037,0.92730533,3338.6,3337.5,1.10849009]
[1768758971235,0.00320381,3338.7,3337.5,1.10849009]
[1768758971424,0.92749368,3338.6,3337.5,1.10849009]
[1768758971626,0.00320381,3338.7,3337.5,1.10849009]
[1768758971835,0.92749368,3338.6,3337.5,1.10849009]
[1768758972036,0.00320381,3338.7,3337.5,1.10849009]
[1768758972227,0.92749368,3338.6,3337.5,1.10849009]
[1768758972428,0.00320381,3338.7,3337.5,1.10849009]
[1768758972630,0.92772298,3338.6,3337.5,1.10849009]
[1768758972831,0.00320381,3338.7,3337.5,1.10849009]
[1768758973128,0.92772165,3338.6,3337.5,1.10849009]
[1768758973328,0.92772165,3338.5,3337.5,1.10849009]
[1768758973533,0.00320381,3338.7,3337.5,1.10849009]
[1768758973735,0.92800233,3338.6,3337.5,1.10849009]
[1768758974033,0.92800233,3338.5,3337.5,1.10849009]
[1768758974232,0.00320381,3338.7,3337.5,1.10849009]
[1768758974433,0.9283531,3338.6,3337.5,1.10849009]
[1768758974735,0.00320381,3338.7,3337.5,1.10849009]
[1768758974736,0.9283531,3338.5,3337.6,0.14987]
[1768758975036,0.00320381,3338.7,3337.6,0.14987]
[1768758975237,0.92835141,3338.6,3337.6,0.14987]
[1768758975436,0.92835141,3338.5,3337.6,0.14987]
[1768758975637,0.00320381,3338.7,3337.6,0.14987]
[1768758975838,0.92881912,3338.6,3337.6,0.14987]
[1768758976037,0.92881912,3338.5,3337.6,0.14987]
[1768758976239,0.92958824,3338.4,3337.6,0.14987]
[1768758976546,0.00320381,3338.7,3337.6,0.14987]
[1768758976835,0.92958792,3338.6,3337.6,0.14987]
[1768758977032,0.92958792,3338.5,3337.6,0.14987]
[1768758977238,0.92958792,3338.4,3337.7,0.95862009]
[1768758977439,0.00320381,3338.7,3337.7,0.95862009]
[1768758977639,0.92998526,3338.6,3337.7,0.95862009]
[1768758977940,0.92998526,3338.5,3337.7,0.95862009]
[1768758978141,0.92998526,3338.4,3337.7,0.95862009]
[1768758978331,0.00320381,3338.7,3337.7,0.95862009]
[1768758978540,0.92997601,3338.6,3337.7,0.95862009]
[1768758978748,0.92997601,3338.5,3337.7,0.95862009]
[1768758978949,0.92997601,3338.4,3337.7,0.95862009]
[1768758979255,0.00320381,3338.7,3338.0,0.95862009]
[1768758979456,0.92820625,3338.6,3338.0,0.95862009]
[1768758979657,0.92820625,3338.5,3338.0,0.95862009]
[1768758979855,0.00320381,3338.7,3337.7,0.95862009]
[1768758980155,0.92820589,3338.6,3337.7,1.10849009]
[1768758980355,0.92820589,3338.5,3337.7,1.10849009]
[1768758980556,0.00320381,3338.7,3337.7,1.10849009]
[1768758980759,0.92815398,3338.6,3337.7,1.10849009]
[1768758980952,0.92815398,3338.5,3337.7,1.10849009]
[1768758981153,0.00320381,3338.7,3337.7,1.10849009]
[1768758981355,0.92810927,3338.6,3337.7,1.10849009]
[1768758981551,0.92810927,3338.5,3337.7,1.10849009]
[1768758981854,0.00320381,3338.7,3337.7,1.10849009]
[1768758982156,0.92810963,3338.6,3337.7,1.10849009]
[1768758982357,0.92810963,3338.5,3337.7,1.10849009]
[1768758982559,0.00320381,3338.7,3337.7,1.10849009]
[1768758982760,0.92806812,3338.6,3337.7,1.10849009]
[1768758982965,0.92806812,3338.5,3337.7,1.10849009]
[1768758983175,0.00320381,3338.7,3337.7,1.10849009]
[1768758983460,0.92803265,3338.6,3337.7,1.10849009]
[1768758983661,0.92803265,3338.5,3337.7,1.10849009]
[1768758983961,0.00320381,3338.7,3337.7,1.10849009]
[1768758984161,0.92803265,3338.6,3337.7,1.10849009]
[1768758984361,0.92803265,3338.5,3337.7,1.10849009]
[1768758984667,0.00320381,3338.7,3337.7,1.10849009]
[1768758984851,0.9279916,3338.6,3337.7,1.10849009]
[1768758985160,0.00320381,3338.7,3337.7,1.10849009]
[1768758985359,0.9279335,3338.6,3337.7,1.10849009]
[1768758985562,0.00320381,3338.7,3337.7,1.10849009]
[1768758985750,0.92793369,3338.6,3337.7,1.10849009]
[1768758986063,0.00320381,3338.7,3337.7,1.10849009]
[1768758986265,0.92793369,3338.6,3337.7,0.14987]
[1768758986457,0.92793369,3338.5,3337.7,0.14987]
[1768758986659,0.9618239,3338.7,3337.7,0.14987]
[1768758986850,0.92790046,3338.6,3337.7,0.14987]
[1768758987160,0.92790046,3338.5,3337.7,0.14987]
[1768758987345,0.9618239,3338.7,3337.7,0.14987]
[1768758987549,0.92790067,3338.6,3337.7,0.14987]
[1768758987749,0.92790067,3338.5,3337.7,0.14987]
[1768758987945,0.9618239,3338.7,3337.7,0.14987]
[1768758988145,0.95862009,3338.4,3337.7,0.14987]
[1768758997772,0.95862009,3338.4,3337.4,0.00240616]
[1768758997960,0.95862009,3338.2,3337.4,0.00240616]
[1768758998360,0.13735488,3338.4,3337.4,0.00240616]
[1768758998666,0.95862009,3338.0,3337.4,0.00240616]
[1768758998871,0.95862009,3338.0,3337.1,0.14989]
[1768758999460,0.13735488,3338.4,3337.1,0.14989]
[1768758999768,0.95862009,3338.0,3337.1,0.14989]
[1768758999972,0.95862009,3338.0,3337.1,0.15201772]
[1768759002873,0.13735488,3338.2,3337.1,0.15201772]
[1768759003061,0.9274984,3338.1,3337.1,0.15201772]
[1768759003262,0.13735488,3338.2,3337.1,0.15201772]
[1768759003562,0.92737059,3338.1,3337.1,0.15201772]
[1768759003859,0.13735488,3338.2,3337.1,0.15201772]
[1768759004060,0.92737059,3338.1,3337.1,0.15201772]
[1768759004272,0.13735488,3338.2,3337.1,0.15201772]
[1768759004572,0.92725964,3338.1,3337.1,0.15201772]
[1768759004875,0.13735488,3338.2,3337.1,0.15201772]
[1768759005172,0.92725964,3338.1,3337.1,0.15201772]
[1768759005372,0.13735488,3338.2,3337.1,0.15201772]
[1768759005671,0.92715527,3338.1,3337.1,0.15201772]
[1768759005972,0.13735488,3338.2,3337.1,0.15201772]
[1768759006272,0.92709439,3338.1,3337.1,0.15201772]
[1768759006571,0.13735488,3338.2,3337.1,0.15201772]
[1768759006762,0.92698844,3338.1,3337.1,0.15201772]
[1768759006958,0.13735488,3338.2,3337.1,0.15201772]
[1768759007160,0.92698789,3338.1,3337.1,0.15201772]
[1768759007359,0.13735488,3338.2,3337.1,0.15201772]
[1768759007571,0.92689598,3338.1,3337.1,0.15201772]
[1768759007868,0.13735488,3338.2,3337.1,0.15201772]
[1768759008170,0.9268959,3338.1,3337.1,0.15201772]
[1768759008362,0.13735488,3338.2,3337.1,0.15201772]
[1768759008562,0.92681664,3338.1,3337.1,0.15201772]
[1768759008762,0.13735488,3338.2,3337.1,0.15201772]
[1768759008964,0.92681672,3338.1,3337.1,0.15201772]
[1768759009167,0.13735488,3338.2,3337.1,0.15201772]
[1768759009366,0.9263446,3338.1,3337.1,0.15201772]
[1768759009676,0.13735488,3338.2,3337.1,0.15201772]
[1768759009973,0.92634387,3338.1,3337.1,0.15201772]
[1768759010172,0.13735488,3338.2,3337.1,0.15201772]
[1768759010369,1.06366075,3338.1,3337.1,0.00212772]
[1768759010575,0.13735488,3337.9,3336.4,0.27952166]
[1768759010772,0.13735488,3337.9,3336.4,0.14992]
[1768759010972,0.13735488,3337.6,3336.4,0.14992]
[1768759011565,0.13735488,3337.6,3336.4,0.15312211]
[1768759012469,0.13941139,3337.4,3336.4,0.15312211]
[1768759015073,0.13941139,3337.4,3336.4,0.00320211]
[1768759032890,0.13941139,3337.8,3336.4,0.00320211]
[1768759033196,1.06414064,3337.7,3336.4,0.00320211]
[1768759033381,0.92472925,3337.6,3336.4,0.00320211]
[1768759034893,1.06414064,3337.6,3336.4,0.00320211]
[1768759035097,0.92472925,3337.5,3336.4,0.00320211]
[1768759036893,0.92472925,3337.4,3336.4,0.00320211]
[1768759037089,1.75436285,3338.0,3336.4,0.00320211]
[1768759037287,2.67980512,3337.9,3336.4,0.00320211]
[1768759037485,0.92544227,3337.8,3336.4,0.00320211]
[1768759038483,0.92544227,3337.8,3336.4,0.14470008]
[1768759039494,2.15511926,3338.6,3338.2,0.14984]
[1768759039791,0.13941139,3341.1,3338.4,0.12073211]
[1768759039991,0.13941139,3340.1,3337.4,5.37082571]
[1768759040197,0.13941139,3339.7,3337.8,0.95845425]
[1768759040799,0.14243189,3339.7,3337.9,4.714]
[1768759041798,0.14243189,3339.7,3338.3,0.14984]
[1768759045596,0.14243189,3339.7,3338.2,0.95845425]
[1768759045597,0.0030205,3339.7,3338.6,1.10827425]
[1768759045990,0.0030205,3339.7,3338.6,0.95845425]
[1768759046402,0.13414133,3340.2,3338.9,0.14981]
[1768759047405,0.13726803,3340.2,3339.0,0.678]
[1768759048001,0.13726803,3340.2,3338.9,4.8644745]
[1768759060808,0.13726803,3340.2,3338.9,0.1524745]
[1768759062914,0.14146074,3340.0,3338.9,0.1524745]
[1768759066810,0.14146074,3339.5,3338.4,2.996]
[1768759066997,0.14146074,3339.5,3338.4,0.95730267]
[1768759067801,0.14146074,3339.5,3338.4,0.96025504]
[1768759069616,0.61178041,3339.8,3338.4,0.00295237]
[1768759070814,0.0031267,3340.2,3338.5,0.95730267]
[1768759071117,1.8116594,3340.1,3338.7,0.95730267]
[1768759071413,0.85435673,3340.0,3338.7,0.95730267]
[1768759071610,0.85435673,3339.9,3338.7,0.95730267]
[1768759071811,0.85435673,3339.8,3338.7,0.95730267]
[1768759072011,0.95730267,3340.1,3338.7,0.95730267]
[1768759072222,0.85438001,3340.0,3338.7,0.95730267]
[1768759072513,0.85438001,3339.9,3338.7,0.95730267]
[1768759072708,0.85438001,3339.8,3338.7,0.95730267]
[1768759072914,0.95730267,3340.1,3338.7,0.95730267]
[1768759073216,0.85440738,3340.0,3338.7,0.95730267]
[1768759073409,0.85440738,3339.9,3338.7,0.95730267]
[1768759073611,0.85440738,3339.8,3338.7,0.95730267]
[1768759073814,0.95730267,3340.1,3338.7,0.95730267]
[1768759074117,0.85443435,3340.0,3338.7,0.95730267]
[1768759074318,0.85443435,3339.9,3338.7,0.95730267]
[1768759074518,0.85443435,3339.8,3338.7,0.95730267]
[1768759074719,0.95730267,3340.1,3338.7,0.95730267]
[1768759074914,0.85446241,3340.0,3338.7,0.95730267]
[1768759075214,0.85446241,3339.9,3338.7,0.95730267]
[1768759075417,0.85446241,3339.8,3338.7,0.95730267]
[1768759075618,0.95730267,3340.1,3338.7,0.95730267]
[1768759075817,0.854483,3340.0,3338.7,0.95730267]
[1768759076015,0.854483,3339.9,3338.7,0.95730267]
[1768759076215,0.854483,3339.8,3338.7,0.95730267]
[1768759076418,0.95730267,3340.1,3338.7,0.95730267]
[1768759076614,0.85447177,3340.0,3338.7,0.95730267]
[1768759076815,0.85447177,3339.9,3338.7,0.95730267]
[1768759077023,0.85447177,3339.8,3338.7,0.95730267]
[1768759077225,1.10081815,3340.1,3338.7,0.95730267]
[1768759077414,0.85446345,3340.0,3338.7,0.95730267]
[1768759077615,0.85446345,3339.9,3338.7,0.95730267]
[1768759077913,0.85446345,3339.8,3338.7,0.95730267]
[1768759078114,1.10081815,3340.1,3338.7,0.95730267]
[1768759078413,0.85446344,3340.0,3338.7,0.95730267]
[1768759078614,0.85446344,3339.9,3338.7,0.95730267]
[1768759078815,0.85446344,3339.8,3338.7,0.95730267]
[1768759079017,1.10081815,3340.1,3338.7,0.95730267]
[1768759079310,0.85445932,3340.0,3338.7,0.95730267]
[1768759079513,0.85445932,3339.9,3338.7,0.95730267]
[1768759079719,0.85445932,3339.8,3338.7,0.95730267]
[1768759080017,1.10081815,3340.1,3338.7,0.95730267]
[1768759080217,0.85446085,3340.0,3338.7,0.95730267]
[1768759080424,0.85446085,3339.9,3338.7,0.95730267]
[1768759080718,0.85446085,3339.8,3338.7,0.95730267]
[1768759081022,1.10081815,3340.1,3338.7,0.95730267]
[1768759081210,0.8544673,3340.0,3338.7,0.95730267]
[1768759081416,0.8544673,3339.9,3338.7,0.95730267]
[1768759081717,0.8544673,3339.8,3338.7,0.95730267]
[1768759081915,1.10081815,3340.1,3338.7,0.95730267]
[1768759082123,0.85446235,3340.0,3338.7,0.95730267]
[1768759082418,0.85446235,3339.9,3338.7,0.95730267]
[1768759082618,0.85446235,3339.8,3338.7,0.95730267]
[1768759082916,1.10081815,3340.1,3338.7,0.95730267]
[1768759083115,0.85447807,3340.0,3338.7,0.95730267]
[1768759083317,0.85447807,3339.9,3338.7,0.95730267]
[1768759083516,0.85447807,3339.8,3338.7,0.95730267]
[1768759083716,1.10081815,3340.1,3338.7,0.95730267]
[1768759083918,0.85449872,3340.0,3338.7,0.95730267]
[1768759084112,0.85449872,3339.9,3338.7,0.95730267]
[1768759084318,0.85449872,3339.8,3338.7,0.95730267]
[1768759084616,1.10081815,3340.1,3338.7,0.95730267]
[1768759084822,0.85452536,3340.0,3338.7,0.95730267]
[1768759085011,0.85452536,3339.9,3338.7,0.95730267]
[1768759085224,0.85452536,3339.8,3338.7,0.95730267]
[1768759085426,1.10081815,3340.1,3338.7,0.95730267]
[1768759085633,0.85455642,3340.0,3338.7,0.95730267]
[1768759085816,0.85455642,3339.9,3338.7,0.95730267]
[1768759086012,0.85455642,3339.8,3338.7,0.95730267]
[1768759086218,1.10081815,3340.1,3338.7,0.95730267]
[1768759086519,0.8545939,3340.0,3338.7,0.95730267]
[1768759086719,1.10081815,3340.1,3338.7,0.95730267]
[1768759086720,0.8545939,3339.9,3338.7,0.95730267]
[1768759086921,1.10081815,3340.1,3338.7,0.95730267]
[1768759087120,0.8545939,3340.0,3338.7,0.95730267]
[1768759087425,0.8545939,3339.9,3338.7,0.95730267]
[1768759087625,1.10081815,3340.1,3338.7,0.95730267]
[1768759087826,0.85462642,3340.0,3338.7,0.95730267]
[1768759088027,0.85462642,3339.9,3338.7,0.95730267]
[1768759088230,0.14351548,3340.1,3338.7,0.95730267]
[1768759088431,0.85466533,3340.0,3338.7,0.95730267]
[1768759088631,0.85466533,3339.9,3338.7,0.95730267]
[1768759088833,0.14351548,3340.1,3338.7,0.95730267]
[1768759089035,0.85466454,3340.0,3338.7,0.95730267]
[1768759089237,0.85466454,3339.9,3338.7,0.95730267]
[1768759089538,0.14351548,3340.1,3338.7,0.95730267]
[1768759089727,0.85471145,3340.0,3338.7,0.95730267]
[1768759089926,0.85471145,3339.9,3338.7,0.95730267]
[1768759090233,0.14351548,3340.1,3338.7,0.95730267]
[1768759090535,0.8547639,3340.0,3338.7,1.10712267]
[1768759090737,0.8547639,3339.9,3338.7,1.10712267]
[1768759091034,0.14351548,3340.1,3338.7,1.10712267]
[1768759091236,0.8547639,3340.0,3338.7,1.10712267]
[1768759091535,0.8547639,3339.9,3338.7,1.10712267]
[1768759091834,0.14351548,3340.1,3338.7,1.10712267]
[1768759092038,0.85480303,3340.0,3338.7,1.10712267]
[1768759092333,0.85480303,3339.9,3338.7,1.10712267]
[1768759092527,0.14351548,3340.1,3338.7,1.10712267]
[1768759092727,0.85485398,3340.0,3338.7,1.10712267]
[1768759093036,0.85485398,3339.9,3338.7,1.10712267]
[1768759093236,0.14351548,3340.1,3338.7,1.10712267]
[1768759093535,0.85492187,3340.0,3338.7,1.10712267]
[1768759093739,0.85492187,3339.9,3338.7,1.10712267]
[1768759094037,0.14351548,3340.1,3338.7,1.10712267]
[1768759094337,0.85492187,3340.0,3338.7,1.10712267]
[1768759094536,0.85492187,3339.9,3338.7,1.10712267]
[1768759094835,0.14351548,3340.1,3338.7,1.10712267]
[1768759095025,0.85501243,3340.0,3338.7,1.10712267]
[1768759095221,0.85501243,3339.9,3338.7,1.10712267]
[1768759095434,0.14351548,3340.1,3338.7,1.10712267]
[1768759095645,0.85506274,3340.0,3338.7,1.10712267]
[1768759095831,0.85506274,3339.9,3338.7,1.10712267]
[1768759096032,0.14351548,3340.1,3338.7,1.10712267]
[1768759096227,0.85506274,3340.0,3338.7,1.10712267]
[1768759096423,0.85506274,3339.9,3338.7,1.10712267]
[1768759096727,0.14351548,3340.1,3338.7,1.10712267]
[1768759096924,0.85515305,3340.0,3338.7,1.10712267]
[1768759097127,0.85515305,3339.9,3338.7,1.10712267]
[1768759097327,0.14351548,3340.1,3338.7,1.10712267]
[1768759097530,0.85515325,3340.0,3338.7,1.10712267]
[1768759097740,0.85515325,3339.9,3338.7,1.10712267]
[1768759097930,0.14351548,3340.1,3338.7,1.10712267]
[1768759098238,1.81245592,3340.0,3338.7,1.10712267]
[1768759098433,0.85515325,3339.9,3338.7,1.10712267]
[1768759102540,0.85515325,3339.9,3338.8,1.713]
[1768759108144,0.95730267,3339.5,3338.7,0.14982]
[1768759108338,0.95730267,3339.4,3338.7,0.14982]
[1768759108641,0.95730267,3339.6,3338.7,0.14982]
[1768759117849,0.15047872,3339.7,3338.7,0.14982]
[1768759118148,0.95730267,3339.9,3338.7,0.14982]
[1768759118447,0.86514202,3339.8,3338.7,0.14982]
[1768759118655,0.16614729,3340.2,3338.7,0.30172997]
[1768759118946,0.86510648,3340.1,3338.8,0.95730267]
[1768759119151,0.86510648,3340.0,3338.8,0.95730267]
[1768759119337,0.86510648,3339.9,3338.8,0.95730267]
[1768759119543,0.16614729,3340.2,3338.8,0.95730267]
[1768759119744,0.86510633,3340.1,3338.8,0.95730267]
[1768759119948,0.86510633,3340.0,3338.8,0.95730267]
[1768759120145,0.96042937,3340.2,3338.9,0.15190997]
[1768759120451,0.86510535,3340.1,3339.0,1.713]
[1768759120643,0.86510535,3340.0,3339.0,1.713]
[1768759120941,0.96042937,3340.2,3339.0,1.713]
[1768759121239,0.86510565,3340.1,3339.0,1.713]
[1768759121440,0.86510565,3340.0,3339.0,1.713]
[1768759121749,0.86510565,3339.9,3339.0,1.713]
[1768759121934,0.95730267,3340.1,3339.0,1.713]
[1768759122138,0.86510753,3340.0,3339.0,1.713]
[1768759122346,0.86510753,3339.9,3339.0,1.713]
[1768759122548,0.95730267,3340.1,3339.0,1.713]
[1768759122749,0.86510853,3340.0,3339.0,1.713]
[1768759122951,0.0031267,3340.2,3339.0,1.713]
[1768759123150,0.86510183,3340.1,3339.0,1.713]
[1768759123351,0.86510183,3340.0,3339.0,1.713]
[1768759123547,0.0031267,3340.2,3339.0,1.713]
[1768759123848,0.86508618,3340.1,3339.0,1.713]
[1768759124048,0.86508618,3340.0,3339.0,1.713]
[1768759124352,0.0031267,3340.2,3339.0,1.713]
[1768759124540,0.86506974,3340.1,3339.0,1.713]
[1768759124737,0.86506974,3340.0,3339.0,1.713]
[1768759124940,0.0031267,3340.2,3339.0,1.713]
[1768759125142,0.86506974,3340.1,3339.0,1.713]
[1768759125343,0.86506974,3340.0,3339.0,1.713]
[1768759125550,0.0031267,3340.2,3339.0,1.713]
[1768759125852,0.86505377,3340.1,3339.0,1.713]
[1768759126049,0.86505377,3340.0,3339.0,1.713]
[1768759126253,0.0031267,3340.2,3339.0,1.713]
[1768759126550,0.86503819,3340.1,3339.0,1.713]
[1768759126749,0.86503819,3340.0,3339.0,1.713]
[1768759126940,0.0031267,3340.2,3339.0,1.713]
[1768759127139,0.86503819,3340.1,3339.0,1.713]
[1768759127337,0.86503819,3340.0,3339.0,1.713]
[1768759127550,0.0031267,3340.2,3339.0,1.713]
[1768759127847,0.86502328,3340.1,3339.0,1.713]
[1768759128050,0.86502328,3340.0,3339.0,1.713]
[1768759128252,0.0031267,3340.2,3339.0,1.713]
[1768759128453,0.865009,3340.1,3339.0,1.713]
[1768759128752,0.865009,3340.0,3339.0,1.713]
[1768759128953,0.0031267,3340.2,3339.0,1.713]
[1768759129154,0.865009,3340.1,3339.0,1.713]
[1768759129355,0.865009,3340.0,3339.0,1.713]
[1768759129558,0.0031267,3340.2,3339.0,1.713]
[1768759129757,0.86721957,3340.1,3339.0,1.713]
[1768759129945,0.86721957,3340.0,3339.0,1.713]
[1768759130240,0.0031267,3340.2,3339.0,1.713]
[1768759130555,0.8672062,3340.1,3339.0,1.713]
[1768759130746,0.8672062,3340.0,3339.0,1.713]
[1768759130946,0.0031267,3340.2,3339.0,1.713]
[1768759131147,0.8672062,3340.1,3339.0,1.713]
[1768759131445,0.8672062,3340.0,3339.0,1.713]
[1768759131640,0.0031267,3340.2,3339.0,1.713]
[1768759131845,0.86719338,3340.1,3339.0,1.713]
[1768759132043,0.86719338,3340.0,3339.0,1.713]
[1768759132246,0.0031267,3340.2,3339.0,1.713]
[1768759132457,0.8671811,3340.1,3339.0,1.713]
[1768759132650,0.8671811,3340.0,3339.0,1.713]
[1768759132853,0.0031267,3340.2,3339.0,1.713]
[1768759133057,0.8671811,3340.1,3339.0,1.713]
[1768759133352,0.8671811,3340.0,3339.0,1.713]
[1768759133553,0.0031267,3340.2,3339.0,1.713]
[1768759133852,0.86716961,3340.1,3339.0,1.713]
[1768759134053,0.86716961,3340.0,3339.0,1.713]
[1768759134355,0.0031267,3340.2,3339.0,1.713]
[1768759134556,0.86715837,3340.1,3339.0,1.713]
[1768759134751,0.86715837,3340.0,3339.0,1.713]
[1768759134952,0.0031267,3340.2,3339.0,1.713]
[1768759135143,0.86715837,3340.1,3339.0,1.713]
[1768759135344,0.86715837,3340.0,3339.0,1.713]
[1768759135559,0.0031267,3340.2,3339.0,1.713]
[1768759135756,0.86714677,3340.1,3338.9,1.713]
[1768759135957,0.86714677,3340.0,3338.9,1.713]
[1768759136157,0.0031267,3340.2,3338.9,1.713]
[1768759136357,0.86713578,3340.1,3338.9,1.713]
[1768759136561,0.86713578,3340.0,3338.9,1.713]
[1768759136852,0.0031267,3340.2,3338.9,1.713]
[1768759137059,0.86713578,3340.1,3338.9,1.713]
[1768759137260,0.86713578,3340.0,3338.9,1.713]
[1768759137461,0.0031267,3340.2,3338.9,1.713]
[1768759137662,0.86712544,3340.1,3338.9,1.713]
[1768759137862,0.86712544,3340.0,3338.9,1.713]
[1768759138160,0.0031267,3340.2,3338.9,1.713]
[1768759138361,0.86711546,3340.1,3338.9,1.713]
[1768759138558,0.86711546,3340.0,3338.9,1.713]
[1768759138861,0.0031267,3340.2,3338.9,1.8745492]
[1768759139160,0.86711539,3340.1,3338.9,1.8745492]
[1768759139362,0.86711539,3340.0,3338.9,1.8745492]
[1768759139660,0.0031267,3340.2,3338.9,1.8745492]
[1768759139858,0.86713762,3340.1,3338.9,1.8745492]
[1768759140058,0.86713762,3340.0,3338.9,1.8745492]
[1768759140256,0.0031267,3340.2,3338.9,1.8745492]
[1768759140456,0.86716012,3340.1,3338.9,1.8745492]
[1768759140662,0.86716012,3340.0,3338.9,1.8745492]
[1768759140858,0.0031267,3340.2,3338.9,1.8745492]
[1768759141063,0.86716012,3340.1,3338.9,1.8745492]
[1768759141256,0.86716012,3340.0,3338.9,1.8745492]
[1768759141454,0.0031267,3340.2,3338.9,1.8745492]
[1768759141661,0.86719645,3340.1,3338.9,1.8745492]
[1768759141861,0.86719645,3340.0,3338.9,1.8745492]
[1768759142066,0.0031267,3340.2,3338.9,1.8745492]
[1768759142258,0.86720478,3340.1,3338.9,1.8745492]
[1768759142559,0.86720478,3340.0,3338.9,1.8745492]
[1768759142859,0.0031267,3340.2,3338.9,1.8745492]
[1768759143059,0.86724142,3340.1,3338.9,1.8745492]
[1768759143364,0.86724142,3340.0,3338.9,1.8745492]
[1768759143565,0.0031267,3340.2,3338.9,1.8745492]
[1768759143859,0.86729594,3340.1,3338.9,1.8745492]
[1768759144064,0.86729594,3340.0,3338.9,1.8745492]
[1768759144263,0.0031267,3340.2,3338.9,1.8745492]
[1768759144564,0.86735928,3340.1,3338.9,1.8745492]
[1768759144766,0.86735928,3340.0,3338.9,1.8745492]
[1768759144958,0.0031267,3340.2,3338.9,1.8745492]
[1768759145161,0.86735964,3340.1,3338.9,1.8745492]
[1768759145359,0.86735964,3340.0,3338.9,1.8745492]
[1768759145559,0.0031267,3340.2,3338.9,1.8745492]
[1768759145864,0.867439,3340.1,3338.9,1.8745492]
[1768759146065,0.0031267,3340.2,3339.0,0.3113592]
[1768759146265,0.0031267,3340.2,3339.2,0.3113492]
[1768759146461,0.0031267,3340.2,3339.3,0.1615492]
[1768759153575,0.0031267,3340.2,3339.4,1.712]
[1768759155579,0.0031267,3340.2,3339.3,1.712]
[1768759165175,6.357,3342.3,3340.0,0.9572675]
[1768759165369,6.357,3342.3,3339.5,0.14979]
[1768759165370,3.76763395,3346.1,3342.2,1.914535]
[1768759165571,0.60133933,3346.0,3343.7,0.00211684]
[1768759165770,3.09290606,3347.1,3344.9,0.9572675]
[1768759165975,3.09290606,3347.0,3345.0,5.00268057]
[1768759166176,0.9572675,3347.9,3345.1,0.46768057]
[1768759166473,0.00279364,3347.0,3345.2,0.46768057]
[1768759166678,3.09290606,3346.9,3345.4,0.16680159]
[1768759166867,3.09290606,3346.9,3345.5,0.46768057]
[1768759167070,0.00279364,3347.0,3345.6,0.46768057]
[1768759167271,1.45843559,3349.0,3345.8,0.16680159]
[1768759167476,3.09290606,3348.9,3346.0,0.16680159]
[1768759167676,3.39990606,3349.3,3346.1,1.54908664]
[1768759167882,0.16197252,3348.9,3346.2,0.46768057]
[1768759168078,0.16197252,3348.8,3346.3,0.46768057]
[1768759168278,3.09290606,3349.3,3346.4,0.46768057]
[1768759168279,0.16197252,3348.5,3346.4,0.46768057]
[1768759168482,0.16197252,3348.5,3346.5,0.46768057]
[1768759168782,0.16197252,3348.2,3346.6,0.46768057]
[1768759169076,0.16197252,3348.2,3346.7,0.46768057]
[1768759169383,0.16197252,3348.0,3346.8,0.46768057]
[1768759169578,0.16197252,3348.0,3346.9,0.46768057]
[1768759169772,0.16197252,3348.0,3347.0,0.46768057]
[1768759169975,19.10793601,3347.5,3345.9,0.589]
[1768759170175,0.16197252,3347.9,3345.6,0.16740607]
[1768759170369,3.09290606,3347.8,3345.6,0.16740607]
[1768759170680,3.25487858,3347.8,3345.7,0.204]
[1768759171581,3.25487858,3347.8,3345.7,0.37140607]
[1768759172079,0.16197252,3347.7,3345.7,1.71]
[1768759172580,3.25487858,3347.6,3345.3,0.16740607]
[1768759172771,0.16197252,3347.5,3345.4,3.228]
[1768759173172,0.16197252,3347.5,3345.3,0.16740607]
[1768759173373,3.09290606,3347.4,3345.3,0.16740607]
[1768759173583,3.25487858,3347.4,3345.4,3.227]
[1768759173783,0.16197252,3347.4,3345.4,3.227]
[1768759174385,0.16197252,3347.4,3345.4,3.37652]
[1768759174575,0.16197252,3347.4,3345.5,1.709]
[1768759174775,0.16197252,3347.4,3345.4,0.14952]
[1768759174981,0.16197252,3347.4,3345.5,0.14952]
[1768759175183,3.09290606,3347.3,3345.5,0.14952]
[1768759175588,3.04089174,3347.3,3345.5,0.14952]
[1768759177489,3.04089174,3347.3,3345.6,0.14951]
[1768759179486,3.04089174,3347.3,3345.7,0.14951]
[1768759182090,3.04089174,3347.3,3345.8,0.46721151]
[1768759182286,3.04089174,3347.3,3345.9,0.46721151]
[1768759182486,19.10793601,3347.2,3346.0,0.46123351]
[1768759182679,3.04089174,3347.3,3345.7,0.14951]
[1768759182882,22.32251535,3347.3,3345.7,0.14951]
[1768759183076,0.1736876,3347.2,3345.7,0.14951]
[1768759183786,0.1736876,3347.2,3345.8,0.1495]
[1768759183987,3.04089174,3347.1,3345.8,0.1495]
[1768759184385,0.1736876,3347.0,3345.8,0.1495]
[1768759185086,19.28162361,3347.0,3345.8,0.1495]
[1768759185394,3.04089174,3346.9,3345.8,0.1495]
[1768759185592,22.14882775,3346.9,3345.8,0.1495]
[1768759185787,19.10793601,3346.8,3345.8,0.1495]
[1768759185992,18.91356186,3346.8,3345.9,3.88]
[1768759186393,18.91356186,3346.7,3345.9,3.88]
[1768759186587,18.91356186,3346.7,3345.3,3.88]
[1768759186795,3.04089174,3346.6,3345.2,5.588]
[1768759186991,3.04089174,3346.6,3345.4,0.95346071]
[1768759187191,3.04089174,3346.6,3345.6,0.95346071]
[1768759187395,0.1736876,3347.3,3345.9,0.95346071]
[1768759187790,18.91356186,3347.2,3345.9,0.95346071]
[1768759187994,3.04089174,3347.2,3346.2,0.95346071]
[1768759188288,3.04089174,3347.2,3346.0,0.95346071]
[1768759188995,3.04089174,3347.2,3345.9,0.1495]
[1768759189191,21.9544536,3347.2,3345.9,0.1495]
[1768759189388,3.04089174,3347.2,3345.9,0.1495]
[1768759189589,21.9544536,3347.2,3345.9,0.1495]
[1768759189888,3.04089174,3347.2,3345.9,0.1495]
[1768759191390,2.65214556,3347.2,3345.9,0.1495]
[1768759193093,2.84878161,3347.2,3345.9,0.1495]
[1768759193302,18.91356186,3347.1,3345.9,0.1495]
[1768759193489,18.42762582,3347.0,3345.9,0.1495]
[1768759193796,18.42762582,3347.1,3345.9,0.1495]
[1768759194197,18.42762582,3347.0,3345.9,0.1495]
[1768759194393,18.62426187,3347.1,3345.9,0.1495]
[1768759194592,18.62426187,3347.1,3346.0,0.46724633]
[1768759194792,18.42762582,3347.0,3346.1,0.46724633]
[1768759195100,18.42762582,3347.0,3346.4,1.56351673]
[1768759195299,18.42762582,3347.0,3346.5,0.46724633]
[1768759195499,2.16847078,3347.2,3346.4,1.56351673]
[1768759195804,18.42762582,3346.8,3346.3,1.56351673]
[1768759196096,18.42762582,3347.4,3346.3,1.56351673]
[1768759196301,18.42762582,3347.2,3346.0,2.12142027]
[1768759196492,2.16847078,3347.8,3346.0,2.12142027]